bitfinex/quotes_SOLUSD_20250830
["timestamp","ask_amount","ask_price","bid_price","bid_amount"]
[1756514102170,38.66,204.62,204.61,0.71]
[1756514102688,38.66,204.62,204.61,0.03]
[1756514104480,39.33,204.62,204.61,0.03]
[1756514104907,39.33,204.62,204.59,0.03]
[1756514105191,13.59559401,204.57,204.56,0.03]
[1756514105368,26.0,204.54,204.48,0.03]
[1756514105688,26.0,204.5,204.48,0.03]
[1756514105861,38.78,204.49,204.48,0.03]
[1756514106594,39.45,204.49,204.48,0.03]
[1756514107794,12.44102217,204.49,204.48,0.03]
[1756514108093,38.76,204.49,204.48,0.03]
[1756514108292,26.0,204.51,204.48,0.71]
[1756514108599,0.67,204.57,204.48,0.71]
[1756514108894,38.76,204.56,204.48,0.71]
[1756514109089,38.76,204.55,204.49,13.59559401]
[1756514109295,38.76,204.55,204.5,0.68]
[1756514111285,38.76,204.55,204.51,0.68]
[1756514111596,38.76,204.55,204.48,13.62559401]
[1756514111773,38.76,204.55,204.51,0.68]
[1756514113574,0.67,204.54,204.48,0.71]
[1756514113907,26.0,204.52,204.48,5.60044655]
[1756514114071,26.0,204.52,204.49,0.68]
[1756514114072,64.72,204.52,204.49,0.68]
[1756514114597,0.67,204.57,204.5,0.68]
[1756514114783,26.0,204.53,204.5,0.68]
[1756514115092,26.0,204.53,204.51,0.68]
[1756514115305,38.68,204.54,204.51,0.68]
[1756514115601,38.68,204.54,204.49,4.89021468]
[1756514115812,38.68,204.54,204.52,0.68]
[1756514116112,38.68,204.54,204.5,0.68]
[1756514116319,38.68,204.54,204.51,0.71]
[1756514116698,26.0,204.58,204.51,0.03]
[1756514117005,42.58724907,204.57,204.51,0.03]
[1756514117216,39.33,204.57,204.51,0.03]
[1756514118102,39.33,204.57,204.51,79.63]
[1756514118303,0.67,204.56,204.51,79.63]
[1756514118482,0.67,204.55,204.51,79.63]
[1756514118687,26.0,204.52,204.51,79.63]
[1756514118924,26.0,204.52,204.51,0.03]
[1756514119596,26.67,204.52,204.51,0.03]
[1756514121615,31.55949735,204.52,204.51,0.03]
[1756514122098,26.67,204.52,204.51,0.03]
[1756514122306,43.78324074,204.52,204.48,0.03]
[1756514122495,26.0,204.49,204.48,0.03]
[1756514122815,29.25538927,204.49,204.48,0.03]
[1756514122997,29.92538927,204.49,204.48,0.03]
[1756514123189,26.67,204.49,204.48,0.03]
[1756514123391,39.73,204.49,204.48,0.03]
[1756514123602,0.67,204.49,204.48,0.03]
[1756514123807,39.73,204.49,204.48,0.03]
[1756514124616,26.0,204.47,204.46,0.03]
[1756514124784,29.25271781,204.47,204.46,0.03]
[1756514125112,29.92271781,204.47,204.46,0.03]
[1756514126315,48.40900483,204.47,204.46,0.03]
[1756514126612,26.0,204.43,204.34,0.68]
[1756514126912,26.0,204.39,204.34,0.68]
[1756514127213,39.64,204.38,204.35,0.68]
[1756514127393,39.64,204.38,204.34,0.68]
[1756514129283,40.31,204.38,204.33,0.68]
[1756514129487,40.31,204.38,204.32,79.6]
[1756514129712,26.67,204.37,204.31,80.28]
[1756514129919,39.6,204.36,204.31,85.17448784]
[1756514130215,39.6,204.35,204.32,0.68]
[1756514131213,39.6,204.34,204.32,0.68]
[1756514131587,39.62,204.34,204.32,0.68]
[1756514131926,26.67,204.37,204.32,0.68]
[1756514132227,39.62,204.36,204.32,0.68]
[1756514132516,39.62,204.36,204.32,0.72]
[1756514132907,39.62,204.35,204.32,80.32]
[1756514133094,0.69,204.37,204.32,80.32]
[1756514133299,39.6,204.36,204.32,80.32]
[1756514134006,0.69,204.4,204.33,0.72]
[1756514134204,26.0,204.36,204.33,0.72]
[1756514134513,0.69,204.4,204.34,0.72]
[1756514134718,65.58,204.39,204.34,0.72]
[1756514134897,26.69,204.39,204.33,4.89404394]
[1756514135098,26.0,204.39,204.34,0.72]
[1756514135308,39.56,204.38,204.34,0.72]
[1756514135497,39.56,204.38,204.35,0.72]
[1756514135700,39.56,204.38,204.36,0.72]
[1756514135919,39.56,204.38,204.37,0.72]
[1756514136218,26.0,204.39,204.37,0.72]
[1756514136511,65.58,204.39,204.37,0.72]
[1756514136817,65.58,204.39,204.35,5.61354818]
[1756514137003,65.58,204.39,204.36,0.72]
[1756514137500,65.58,204.39,204.35,4.89354818]
[1756514137814,65.58,204.39,204.35,5.61354818]
[1756514137996,65.58,204.39,204.36,0.72]
[1756514138198,65.58,204.39,204.35,4.89354818]
[1756514138415,0.69,204.38,204.32,14.31559401]
[1756514138607,65.58,204.39,204.32,13.59559401]
[1756514138815,65.58,204.39,204.33,0.72]
[1756514140219,66.27,204.39,204.31,4.89452302]
[1756514140432,0.69,204.38,204.31,4.89452302]
[1756514140602,26.0,204.36,204.31,4.89452302]
[1756514140797,0.69,204.35,204.31,4.89452302]
[1756514141298,65.56,204.36,204.31,5.61452302]
[1756514141499,66.25,204.36,204.31,5.61452302]
[1756514141814,40.25,204.35,204.31,5.61452302]
[1756514142123,39.56,204.35,204.31,5.61452302]
[1756514143315,26.69,204.37,204.32,0.72]
[1756514143616,39.5,204.35,204.32,0.72]
[1756514143811,39.5,204.35,204.31,4.89452302]
[1756514144008,39.5,204.35,204.31,0.72]
[1756514144700,39.5,204.35,204.31,80.32]
[1756514144916,0.69,204.34,204.31,79.6]
[1756514145214,39.5,204.35,204.31,79.6]
[1756514145215,0.69,204.33,204.31,79.6]
[1756514145426,40.19,204.35,204.31,79.6]
[1756514145600,0.69,204.34,204.31,79.6]
[1756514145924,0.69,204.34,204.31,84.49447091]
[1756514146218,0.69,204.33,204.31,79.6]
[1756514146610,0.69,204.32,204.31,79.6]
[1756514147022,40.13,204.32,204.29,0.03]
[1756514147321,26.0,204.3,204.29,0.03]
[1756514147704,26.69,204.3,204.29,0.03]
[1756514148020,40.11,204.3,204.29,0.03]
[1756514148520,0.69,204.3,204.29,0.03]
[1756514148819,66.11,204.3,204.29,0.03]
[1756514149912,0.69,204.3,204.29,0.03]
[1756514150112,65.4,204.3,204.29,0.03]
[1756514150317,26.0,204.3,204.29,0.03]
[1756514150513,66.09,204.3,204.29,0.03]
[1756514150823,66.07,204.3,204.29,0.03]
[1756514151701,66.05,204.3,204.29,0.03]
[1756514152024,65.36,204.3,204.29,0.03]
[1756514152523,66.05,204.3,204.29,0.03]
[1756514153021,26.69,204.3,204.29,0.03]
[1756514153207,66.07,204.3,204.29,0.03]
[1756514155523,66.01,204.3,204.29,0.03]
[1756514156133,65.99,204.3,204.29,0.03]
[1756514159232,65.95,204.3,204.29,0.03]
[1756514159829,0.69,204.35,204.29,0.75]
[1756514160130,39.24,204.34,204.29,0.75]
[1756514160332,0.69,204.4,204.3,0.72]
[1756514160525,39.24,204.39,204.3,0.72]
[1756514160728,26.0,204.36,204.3,0.72]
[1756514160916,65.24,204.36,204.3,0.72]
[1756514162531,65.24,204.36,204.31,4.89452302]
[1756514162826,65.9,204.36,204.31,4.89452302]
[1756514163003,39.2,204.35,204.32,0.67]
[1756514163204,39.2,204.35,204.33,0.67]
[1756514163415,39.2,204.35,204.31,5.56452302]
[1756514163613,39.86,204.35,204.31,4.89452302]
[1756514163832,39.2,204.35,204.31,4.89452302]
[1756514164004,39.86,204.35,204.3,4.8947626]
[1756514164210,0.66,204.34,204.3,4.8947626]
[1756514164435,39.88,204.33,204.3,4.8947626]
[1756514164839,39.22,204.33,204.3,4.8947626]
[1756514165013,0.66,204.35,204.3,5.5647626]
[1756514165207,26.0,204.38,204.3,5.5647626]
[1756514165408,26.0,204.34,204.3,5.5647626]
[1756514165603,39.18,204.33,204.3,4.8947626]
[1756514166018,39.84,204.33,204.3,4.8947626]
[1756514166234,0.66,204.32,204.3,4.8947626]
[1756514167437,39.18,204.33,204.3,4.8947626]
[1756514167734,39.18,204.33,204.3,5.5647626]
[1756514167939,39.14,204.35,204.31,0.67]
[1756514168123,39.8,204.35,204.3,4.8947626]
[1756514168317,39.8,204.35,204.3,5.5647626]
[1756514168615,39.14,204.35,204.3,5.5647626]
[1756514169151,0.66,204.34,204.3,5.5647626]
[1756514169316,0.66,204.33,204.29,0.03]
[1756514169517,39.12,204.32,204.29,0.03]
[1756514170047,0.66,204.31,204.29,0.03]
[1756514170654,39.78,204.32,204.29,0.03]
[1756514170950,39.12,204.32,204.29,0.03]
[1756514171118,39.78,204.32,204.29,0.03]
[1756514173346,0.66,204.31,204.29,0.03]
[1756514174860,26.66,204.3,204.29,0.03]
[1756514175325,65.74,204.3,204.29,0.03]
[1756514178647,39.04,204.3,204.29,0.03]
[1756514178829,39.06,204.3,204.29,0.03]
[1756514179027,39.72,204.3,204.29,0.03]
[1756514179520,65.72,204.3,204.29,0.03]
[1756514180128,26.0,204.27,204.26,0.03]
[1756514180328,0.66,204.33,204.26,0.03]
[1756514180547,0.66,204.33,204.27,0.67]
[1756514180548,39.12,204.32,204.27,0.67]
[1756514180934,4.07423125,204.43,204.28,14.26559401]
[1756514181141,0.66,204.41,204.29,0.67]
[1756514181460,27.44,204.4,204.29,0.67]
[1756514181625,0.66,204.39,204.3,13.59559401]
[1756514181949,0.66,204.39,204.31,0.67]
[1756514182541,27.44,204.4,204.32,4.89428347]
[1756514182739,39.78,204.39,204.32,4.89428347]
[1756514184038,0.66,204.38,204.32,4.89428347]
[1756514184624,26.0,204.36,204.27,5.56548147]
[1756514184958,39.08,204.35,204.27,4.89548147]
[1756514185131,26.0,204.32,204.26,0.03]
[1756514185329,39.06,204.31,204.26,0.03]
[1756514185535,39.72,204.31,204.26,0.03]
[1756514185933,0.66,204.3,204.26,0.03]
[1756514186471,0.66,204.29,204.26,0.03]
[1756514186951,26.66,204.28,204.26,0.03]
[1756514187140,39.08,204.27,204.26,0.03]
[1756514187331,39.74,204.27,204.26,0.03]
[1756514188140,65.72,204.27,204.26,0.03]
[1756514189353,70.61548147,204.27,204.26,0.03]
[1756514190647,65.72,204.27,204.26,0.03]
[1756514191048,70.61548147,204.27,204.26,0.03]
[1756514191436,0.69,204.31,204.26,0.03]
[1756514191636,0.69,204.3,204.26,0.03]
[1756514192169,26.0,204.28,204.26,0.03]
[1756514192462,39.0,204.27,204.26,0.03]
[1756514192936,39.69,204.27,204.26,0.03]
[1756514193939,44.58548147,204.27,204.26,0.03]
[1756514195935,0.69,204.34,204.26,0.69]
[1756514196136,38.96,204.33,204.26,0.69]
[1756514196361,0.69,204.32,204.26,0.69]
[1756514197464,26.0,204.29,204.26,0.03]
[1756514197760,39.63,204.28,204.26,0.03]
[1756514198554,32.88759537,204.27,204.26,0.03]
[1756514198940,33.57759537,204.27,204.26,0.03]
[1756514199372,38.47307684,204.27,204.26,0.03]
[1756514199660,73.76776003,204.27,204.26,0.03]
[1756514200055,65.59,204.27,204.26,0.03]
[1756514200437,73.74622878,204.27,204.26,0.03]
[1756514204160,47.74622878,204.27,204.26,0.03]
[1756514204961,61.34182279,204.27,204.26,0.03]
[1756514205567,64.96156023,204.27,204.26,0.03]
[1756514207049,64.96156023,204.27,204.26,1e-08]
[1756514207364,68.86118826,204.27,204.26,1e-08]
[1756514209764,39.59559401,204.24,204.23,0.03]
[1756514209959,81.69634132,204.24,204.23,0.03]
[1756514210271,82.38634132,204.24,204.23,0.03]
[1756514210458,86.00211188,204.24,204.21,0.03]
[1756514210676,0.06,204.29,204.22,0.66]
[1756514210855,38.98,204.28,204.22,0.66]
[1756514211250,0.06,204.29,204.22,5.55660415]
[1756514211450,28.08,204.28,204.23,0.66]
[1756514212775,26.0,204.28,204.24,0.66]
[1756514212977,26.0,204.24,204.21,0.03]
[1756514213181,39.67,204.27,204.21,0.03]
[1756514213182,4.89668005,204.22,204.21,0.03]
[1756514213484,43.99668005,204.22,204.21,0.03]
[1756514213662,71.428821,204.22,204.21,0.03]
[1756514213974,65.26,204.22,204.21,0.03]
[1756514215281,65.95,204.22,204.21,0.03]
[1756514215787,26.69,204.22,204.21,0.03]
[1756514215970,65.26,204.22,204.21,0.03]
[1756514217779,70.84668005,204.22,204.21,0.03]
[1756514220472,65.95,204.22,204.21,0.03]
[1756514221588,70.84668005,204.22,204.21,0.03]
[1756514223385,31.58668005,204.22,204.21,0.03]
[1756514223592,44.03668005,204.22,204.21,0.03]
[1756514224989,4.898302,204.24,204.21,0.68]
[1756514225365,39.1,204.23,204.22,0.65]
[1756514225692,39.16,204.25,204.22,0.65]
[1756514225872,39.16,204.26,204.22,0.65]
[1756514226391,0.06,204.29,204.22,0.65]
[1756514226597,39.16,204.28,204.22,0.65]
[1756514226965,39.16,204.28,204.23,4.89644028]
[1756514227188,39.16,204.28,204.24,0.65]
[1756514227571,39.16,204.28,204.25,0.65]
[1756514227768,39.16,204.28,204.23,4.89644028]
[1756514227972,39.16,204.28,204.24,0.65]
[1756514228172,39.16,204.28,204.25,0.65]
[1756514229109,39.83,204.28,204.22,0.65]
[1756514229403,26.0,204.25,204.21,0.03]
[1756514229609,26.0,204.22,204.21,0.03]
[1756514229769,65.79,204.22,204.21,0.03]
[1756514230969,26.0,204.14,204.08,5.548559]
[1756514231169,26.0,204.1,204.05,0.65]
[1756514231379,65.52,204.1,204.05,0.65]
[1756514231671,39.56,204.12,204.06,0.65]
[1756514231878,39.58,204.12,204.06,0.65]
[1756514232197,39.58,204.11,204.03,0.65]
[1756514232385,39.58,204.11,204.05,0.65]
[1756514233199,26.0,204.13,204.06,4.90051945]
[1756514233393,26.0,204.13,204.07,0.65]
[1756514233898,26.0,204.05,203.96,15.382242]
[1756514234085,13.59559401,204.08,203.97,0.65]
[1756514234086,26.0,204.01,203.97,0.65]
[1756514234392,39.74,204.03,203.98,0.65]
[1756514234596,26.0,204.0,203.88,17.29432447]
[1756514234795,26.0,204.0,203.94,0.65]
[1756514234997,26.0,204.0,203.95,4.90316253]
[1756514235299,26.0,204.0,203.96,0.65]
[1756514235482,26.0,204.0,203.97,0.65]
[1756514235985,26.0,204.0,203.94,5.55331339]
[1756514236187,26.0,204.0,203.94,0.65]
[1756514236378,26.0,204.0,203.94,5.55329809]
[1756514238675,26.0,203.99,203.88,2.55701647]
[1756514238875,26.0,203.95,203.85,0.65]
[1756514239204,39.84,203.94,203.86,4.90532718]
[1756514239383,39.84,203.94,203.85,0.65]
[1756514239576,4.25235501,203.93,203.82,0.65]
[1756514239889,0.67,203.93,203.82,5.55623225]
[1756514240193,3.58234802,203.92,203.83,0.65]
[1756514240395,39.84,203.94,203.83,0.65]
[1756514240597,0.67,203.91,203.83,0.65]
[1756514241284,26.67,203.91,203.83,5.55591381]
[1756514242575,26.0,203.91,203.83,5.55591381]
[1756514242773,0.67,203.94,203.84,0.65]
[1756514243386,0.67,203.94,203.85,4.90556781]
[1756514243705,40.49,203.96,203.86,0.65]
[1756514244002,3.57016166,203.95,203.86,0.65]
[1756514244204,0.67,203.94,203.85,4.90556781]
[1756514244499,0.67,203.95,203.86,0.65]
[1756514244889,0.67,203.95,203.85,4.90556781]
[1756514245212,39.82,203.96,203.86,0.65]
[1756514245409,39.82,203.96,203.87,4.90508657]
[1756514245702,39.82,203.96,203.88,0.65]
[1756514245878,0.67,203.95,203.88,0.65]
[1756514247499,0.67,203.95,203.89,4.90460542]
[1756514247892,0.67,203.94,203.85,0.65]
[1756514248709,0.67,203.94,203.88,0.03]
[1756514249507,0.67,203.94,203.88,4.93484598]
[1756514250194,40.49,203.96,203.88,5.58484598]
[1756514251106,0.72,204.0,203.89,0.66]
[1756514251407,5.43230834,204.15,203.9,13.59559401]
[1756514251408,0.72,204.03,203.9,13.59559401]
[1756514251582,40.46,204.06,203.92,13.59559401]
[1756514251778,40.48,204.06,203.93,0.66]
[1756514252606,40.48,204.06,203.94,17.16191036]
[1756514252811,0.72,204.05,203.95,0.66]
[1756514252991,0.72,204.07,203.95,0.66]
[1756514253313,0.72,204.1,203.96,39.59559401]
[1756514253496,0.72,204.1,203.98,13.59559401]
[1756514253686,7.76,204.12,204.0,13.59559401]
[1756514254030,0.72,204.11,204.01,0.66]
[1756514254590,0.72,204.11,204.02,17.15518085]
[1756514254790,0.72,204.11,204.03,0.66]
[1756514256801,0.72,204.11,204.04,4.9009998]
[1756514260409,0.72,204.11,204.04,84.5009998]
[1756514261827,0.72,204.11,204.04,85.1609998]
[1756514264232,0.72,204.1,204.04,79.6]
[1756514264410,0.72,204.09,204.04,84.50091515]
[1756514264606,26.0,204.1,204.04,84.50091515]
[1756514264801,0.72,204.09,204.04,84.50091515]
[1756514265003,0.72,204.08,204.04,84.50091515]
[1756514265202,0.72,204.07,204.04,84.50091515]
[1756514266302,0.72,204.07,204.04,4.90091515]
[1756514267715,0.72,204.07,204.02,4.90148024]
[1756514267911,49.592965,204.14,204.03,0.66]
[1756514267912,26.72,204.11,204.03,0.66]
[1756514268420,26.72,204.11,204.02,5.56148024]
[1756514268617,0.72,204.1,204.02,5.56148024]
[1756514268804,26.0,204.11,204.02,5.56148024]
[1756514269005,0.72,204.1,204.02,5.56148024]
[1756514269302,0.72,204.09,204.02,5.56148024]
[1756514269702,0.72,204.12,204.03,0.66]
[1756514269929,39.5,204.14,204.03,119.76]
[1756514269930,40.22,204.14,204.03,119.76]
[1756514270109,39.5,204.14,204.04,0.66]
[1756514270312,39.5,204.14,204.04,80.26]
[1756514270526,39.5,204.14,204.05,0.66]
[1756514270926,0.72,204.15,204.05,0.66]
[1756514271416,0.72,204.15,204.06,17.15181808]
[1756514271736,0.72,204.15,204.07,0.66]
[1756514272233,26.72,204.15,204.06,4.90051945]
[1756514272432,0.72,204.14,204.06,4.90051945]
[1756514272613,0.72,204.13,204.06,4.90051945]
[1756514272814,0.72,204.12,204.05,4.90075085]
[1756514273019,0.72,204.11,204.05,4.90075085]
[1756514273421,0.72,204.13,204.05,5.56075085]
[1756514274338,4.3114206,204.12,204.05,5.56075085]
[1756514274522,0.72,204.12,204.05,5.56075085]
[1756514276515,0.72,204.11,204.05,5.56075085]
[1756514278442,0.72,204.11,204.05,85.16075085]
[1756514278815,0.72,204.13,204.05,85.16075085]
[1756514280137,0.72,204.13,204.05,84.50075085]
[1756514280325,0.72,204.16,204.07,4.90027931]
[1756514280517,3.59368758,204.15,204.08,0.66]
[1756514280735,44.99790126,204.17,204.08,0.66]
[1756514280935,26.0,204.13,204.07,79.6]
[1756514281131,26.0,204.13,204.07,80.28]
[1756514281646,26.0,204.14,204.07,79.6]
[1756514281814,26.0,204.14,204.08,0.68]
[1756514282247,0.68,204.15,204.09,4.8997991]
[1756514282545,0.68,204.15,204.09,5.5797991]
[1756514283041,0.68,204.15,204.09,0.68]
[1756514284121,39.42,204.16,204.09,80.28]
[1756514284550,39.42,204.16,204.1,5.57955903]
[1756514285622,0.06,204.18,204.11,0.68]
[1756514285826,0.06,204.18,204.11,80.28]
[1756514286029,0.06,204.18,204.12,0.68]
[1756514286321,0.06,204.18,204.12,80.28]
[1756514286530,0.06,204.18,204.13,0.68]
[1756514287257,0.06,204.18,204.12,79.6]
[1756514287423,0.06,204.18,204.11,40.06]
[1756514287747,0.06,204.18,204.12,4.89907897]
[1756514288526,0.06,204.18,204.13,0.68]
[1756514288847,0.06,204.18,204.14,0.68]
[1756514291258,0.06,204.18,204.15,0.68]
[1756514291435,0.06,204.18,204.16,4.89811912]
[1756514291753,0.06,204.18,204.17,0.68]
[1756514292333,0.06,204.18,204.17,80.28]
[1756514292927,0.06,204.18,204.17,79.6]
[1756514293824,0.74,204.18,204.14,79.6]
[1756514294554,0.06,204.18,204.14,80.28]
[1756514294933,0.06,204.18,204.14,85.17849694]
[1756514295134,0.06,204.18,204.15,0.68]
[1756514295743,0.06,204.18,204.16,0.68]
[1756514296752,0.06,204.18,204.17,0.68]
[1756514297154,0.06,204.18,204.17,39.96]
[1756514297534,0.06,204.18,204.16,79.6]
[1756514297853,0.06,204.18,204.16,85.17803746]
[1756514298353,0.74,204.18,204.12,0.68]
[1756514299137,0.74,204.18,204.12,39.98]
[1756514299342,0.74,204.18,204.13,4.89883366]
[1756514299564,0.74,204.18,204.13,5.57883366]
[1756514301141,0.06,204.18,204.14,0.68]
[1756514301342,0.68,204.17,204.11,80.28]
[1756514301555,0.68,204.17,204.11,5.57925633]
[1756514302137,0.06,204.18,204.12,0.68]
[1756514303366,0.06,204.18,204.13,4.89883897]
[1756514303569,0.06,204.18,204.14,0.68]
[1756514304067,0.06,204.18,204.15,0.68]
[1756514304367,0.06,204.18,204.16,0.68]
[1756514304661,0.06,204.18,204.16,80.28]
[1756514305049,0.06,204.18,204.17,0.68]
[1756514305362,0.06,204.18,204.17,98.77347322]
[1756514306961,0.06,204.21,204.17,98.77347322]
[1756514306962,0.06,204.21,204.2,39.59559401]
[1756514307168,0.06,204.21,204.2,78.83559401]
[1756514307345,0.06,204.21,204.2,79.51559401]
[1756514307545,0.06,204.21,204.2,84.41275365]
[1756514307854,0.06,204.23,204.21,13.59559401]
[1756514308046,0.06,204.23,204.21,93.87559401]
[1756514308248,0.06,204.26,204.25,39.59559401]
[1756514308445,0.06,204.26,204.25,78.89559401]
[1756514308646,0.06,204.26,204.25,79.57559401]
[1756514309367,0.06,204.26,204.25,84.47155484]
[1756514309368,1e-08,204.26,204.25,84.47155484]
[1756514309751,1e-08,204.26,204.25,84.45155484]
[1756514310343,1e-08,204.26,204.25,58.47155484]
[1756514311048,0.68000001,204.26,204.21,39.28]
[1756514311371,0.68,204.25,204.21,44.1768803]
[1756514311947,1e-08,204.26,204.21,44.1768803]
[1756514312249,0.68000001,204.26,204.21,44.8468803]
[1756514313848,1e-08,204.26,204.21,123.7768803]
[1756514314042,0.68,204.25,204.21,123.7768803]
[1756514314652,0.68,204.24,204.21,123.7768803]
[1756514315352,0.68000001,204.26,204.21,123.7768803]
[1756514315552,0.68,204.25,204.21,123.7768803]
[1756514319461,1e-08,204.26,204.21,123.7768803]
[1756514319462,1e-08,204.26,204.21,124.4468803]
[1756514319667,0.68000001,204.26,204.21,124.4468803]
[1756514319848,0.68,204.25,204.21,124.4468803]
[1756514320768,1e-08,204.26,204.21,124.4468803]
[1756514320769,1e-08,204.26,204.21,79.6]
[1756514320953,0.68,204.24,204.18,79.6]
[1756514321270,26.0,204.25,204.19,0.67]
[1756514321650,26.0,204.24,204.19,0.67]
[1756514321962,26.0,204.24,204.17,44.11787921]
[1756514322158,0.68,204.23,204.17,44.11787921]
[1756514322555,26.0,204.24,204.17,44.11787921]
[1756514322873,0.68,204.23,204.17,44.11787921]
[1756514323069,0.68,204.22,204.17,39.22]
[1756514323268,0.68,204.21,204.17,39.22]
[1756514323459,0.68,204.21,204.17,118.82]
[1756514323659,0.68,204.2,204.19,0.03]
[1756514324571,0.68,204.23,204.19,0.03]
[1756514324755,0.68,204.22,204.19,0.03]
[1756514324955,0.68,204.21,204.19,0.03]
[1756514326072,0.68,204.2,204.19,0.03]
[1756514327674,0.68,204.22,204.19,0.03]
[1756514327880,3.25076928,204.25,204.19,0.03]
[1756514328082,0.68,204.21,204.19,0.03]
[1756514328768,0.68,204.21,204.19,79.63]
[1756514334174,0.68,204.23,204.19,79.63]
[1756514334386,0.68,204.22,204.19,84.52725226]
[1756514335089,0.68,204.21,204.19,79.63]
[1756514336486,3.25440696,204.24,204.19,79.63]
[1756514336672,0.68,204.23,204.19,79.63]
[1756514336876,0.68,204.22,204.19,79.63]
[1756514337870,0.68,204.21,204.19,79.63]
[1756514338071,0.68,204.23,204.19,79.63]
[1756514338279,0.68,204.22,204.19,79.63]
[1756514341093,0.66,204.22,204.19,79.63]
[1756514341277,0.66,204.21,204.19,79.63]
[1756514341891,4.89620735,204.24,204.19,79.63]
[1756514342092,0.66,204.23,204.19,79.63]
[1756514342263,4.89620735,204.24,204.19,79.63]
[1756514342468,0.66,204.23,204.19,79.63]
[1756514342794,0.66,204.22,204.19,79.63]
[1756514343670,5.55620735,204.24,204.19,79.63]
[1756514343893,0.66,204.23,204.19,80.33]
[1756514344378,4.89620735,204.24,204.19,79.63]
[1756514344582,0.66,204.23,204.19,80.33]
[1756514346576,3.91654589,204.23,204.19,80.33]
[1756514348802,26.0,204.2,204.19,0.03]
[1756514348977,29.25654589,204.2,204.19,0.03]
[1756514349299,29.91654589,204.2,204.19,0.03]
[1756514350379,3.25654589,204.2,204.19,0.73]
[1756514350580,39.02,204.21,204.19,0.03]
[1756514351076,1e-08,204.26,204.19,0.03]
[1756514351286,3.25517602,204.25,204.2,0.7]
[1756514352301,3.25517603,204.26,204.2,0.7]
[1756514353290,3.25517603,204.26,204.2,5.5969819]
[1756514353485,3.25517603,204.26,204.21,0.7]
[1756514353684,3.25517603,204.26,204.19,84.52737928]
[1756514353881,3.25517603,204.26,204.22,0.7]
[1756514355595,3.25517603,204.26,204.23,0.7]
[1756514355796,1e-08,204.26,204.23,0.7]
[1756514356308,1e-08,204.26,204.2,5.59697544]
[1756514356481,1e-08,204.26,204.2,4.89697544]
[1756514356684,1e-08,204.26,204.21,0.7]